bitfinex-derivatives/quotes_BNBF0:USTF0_20250709
["timestamp","ask_amount","ask_price","bid_price","bid_amount"]
[1752028239439,1.6994792,661.29,661.2,0.26306639]
[1752028240545,1.6994792,661.28,661.2,0.26306639]
[1752028241942,1.6994792,661.31,661.2,0.26306639]
[1752028244047,2.2663335,661.45,661.2,0.26306639]
[1752028244048,1.6994792,661.32,661.2,0.26306639]
[1752028246048,1.6994792,661.34,661.2,0.26306639]
[1752028247745,1.6994792,661.35,661.2,0.26306639]
[1752028252046,3.3995002,661.69,661.2,0.26306639]
[1752028252248,2.3259621,661.92,661.2,0.26306639]
[1752028252448,2.3259621,661.91,660.79,2.461]
[1752028252751,2.3259621,661.9,661.25,0.2630465]
[1752028252948,0.26308926,661.93,660.79,2.461]
[1752028253153,2.3259618,661.92,660.79,2.461]
[1752028253351,2.3259618,661.91,661.28,0.26304849]
[1752028253549,2.3259618,661.9,660.79,2.461]
[1752028253753,2.3259618,661.89,661.3,0.2630475]
[1752028253951,2.3259618,661.88,661.3,0.2630475]
[1752028254150,2.2674334,661.51,660.79,2.461]
[1752028254349,1.700575,661.35,661.31,0.26305048]
[1752028254655,1.700575,661.35,660.79,2.461]
[1752028254949,1.700575,661.35,661.31,0.26310318]
[1752028255251,1.700575,661.35,660.79,2.461]
[1752028255553,1.700575,661.35,661.31,0.26310318]
[1752028255749,1.700575,661.34,660.79,2.461]
[1752028255947,1.700575,661.34,661.31,0.26310318]
[1752028256150,1.700575,661.34,660.79,2.461]
[1752028256554,1.700575,661.34,661.31,0.26310418]
[1752028256854,1.700575,661.34,660.79,2.461]
[1752028257154,1.700575,661.35,661.31,0.26310418]
[1752028257355,1.700575,661.35,660.79,2.461]
[1752028257555,1.700575,661.42,660.92,0.26310418]
[1752028257751,1.700575,661.41,660.92,0.26310418]
[1752028258656,1.700575,661.43,660.92,0.26310418]
[1752028259155,1.700575,661.45,660.92,0.26310418]
[1752028259356,1.700575,661.46,660.92,0.26310418]
[1752028261259,1.700575,661.45,660.92,0.26310418]
[1752028262155,1.700575,661.44,660.92,0.26310418]
[1752028265156,1.700575,661.43,660.92,0.26310418]
[1752028265359,1.700575,661.42,660.92,0.26310418]
[1752028266859,1.700575,661.42,660.93,2.258]
[1752028267762,5.6685836,662.64,660.93,2.258]
[1752028267763,1.700575,661.69,660.93,2.258]
[1752028268163,1.700575,661.73,660.93,2.258]
[1752028269061,1.700575,661.75,660.93,2.258]
[1752028270164,1.700575,661.76,660.93,2.258]
[1752028271167,1.700575,661.77,660.93,2.258]
[1752028272066,1.700575,661.78,660.93,2.258]
[1752028273166,1.700575,661.79,660.93,2.258]
[1752028274171,1.700575,661.8,660.93,2.258]
[1752028277669,1.700575,661.75,660.93,2.258]
[1752028277873,1.700575,661.74,660.93,2.258]
[1752028280378,2.2674334,661.88,660.93,2.258]
[1752028280576,1.6908929,661.74,660.93,2.258]
[1752028281673,1.6908929,661.73,660.93,2.258]
[1752028283177,1.6908929,661.74,660.93,2.258]
[1752028283676,1.6908929,661.73,660.93,2.258]
[1752028283875,1.6908929,661.72,660.93,2.258]
[1752028284080,1.6908929,661.73,660.93,2.258]
[1752028286980,1.6908929,661.76,660.93,2.258]
[1752028288183,1.6908929,661.78,660.93,2.258]
[1752028294789,2.2674334,661.92,660.93,2.258]
[1752028294991,1.6890737,661.78,660.93,2.258]
[1752028296793,1.6890737,661.75,660.93,2.258]
[1752028297591,1.6890737,661.76,660.93,2.258]
[1752028297793,1.6890737,661.76,660.92,0.26310418]
[1752028298493,1.6890737,661.75,660.92,0.26310418]
[1752028299595,0.93358474,661.75,660.93,1.0434091]
[1752028299893,2.2674334,661.87,660.93,1.0434091]
[1752028300088,2.2688832,661.99,660.93,1.0434091]
[1752028300290,2.2688832,662.07,661.06,1.68237]
[1752028300590,2.2688832,662.07,661.07,1.0434091]
[1752028300791,2.2688832,662.07,661.08,1.0434091]
[1752028300993,2.2688832,662.07,661.09,1.0434091]
[1752028301194,1.0061563,662.28,661.09,1.0434091]
[1752028301195,1.0061563,662.27,661.1,1.0434091]
[1752028301393,1.0061563,662.26,661.11,1.0434091]
[1752028301694,1.0061563,662.25,661.12,1.0434091]
[1752028301891,1.0061563,662.24,661.13,1.0434091]
[1752028302091,1.0061563,662.23,661.14,1.0434091]
[1752028302294,1.0061563,662.22,661.15,1.0434091]
[1752028302495,1.0061563,662.21,661.16,1.0434091]
[1752028302692,1.0061563,662.2,661.17,1.0434091]
[1752028302894,1.0061563,662.19,661.18,1.0434091]
[1752028303093,1.0061563,662.18,661.19,1.0434091]
[1752028303293,1.0061563,662.17,661.2,1.0434091]
[1752028303493,1.0061563,662.31,661.21,1.0434091]
[1752028303697,1.0061563,662.3,661.22,1.0434091]
[1752028303992,1.0061563,662.29,661.23,1.0434091]
[1752028304194,1.0061563,662.28,661.24,1.0434091]
[1752028304392,1.0061563,662.27,661.25,1.0434091]
[1752028304593,1.0061563,662.26,661.26,0.93011494]
[1752028304893,1.0061563,662.25,661.27,0.93011494]
[1752028305097,1.0061563,662.24,661.28,0.93011494]
[1752028305396,1.0061563,662.23,661.29,0.93019737]
[1752028305594,0.26297991,662.32,660.98,2.2599685]
[1752028305595,1.0061563,662.22,661.3,0.93019737]
[1752028305796,1.0061563,662.21,661.31,0.93019737]
[1752028306094,1.0061563,662.2,661.32,0.93019737]
[1752028306299,1.0061563,662.19,661.33,0.93019737]
[1752028306495,0.26297991,662.32,661.11,1.6823483]
[1752028306496,1.0061563,662.18,661.34,0.93019737]
[1752028306695,1.0061563,662.31,661.35,0.93019737]
[1752028306895,1.0061563,662.3,661.36,0.93019737]
[1752028307095,1.0061563,662.29,661.37,0.93019737]
[1752028307299,1.0061563,662.28,661.38,0.93019737]
[1752028307496,1.0061563,662.27,661.39,0.93019737]
[1752028307698,1.0061563,662.26,661.4,0.93019737]
[1752028307899,1.0061563,662.25,661.41,0.93019737]
[1752028308097,1.0061563,662.24,661.42,0.93019737]
[1752028308297,1.0061563,662.23,661.43,0.93019737]
[1752028308496,1.0061563,662.22,661.44,0.93019737]
[1752028308704,1.0061563,662.21,661.45,0.93019737]
[1752028308896,1.0061563,662.2,661.46,0.93019737]
[1752028309099,1.0061563,662.19,661.47,0.93019737]
[1752028309302,1.0061563,662.31,661.48,0.93019737]
[1752028309602,0.26297991,662.32,660.94,2.456]
[1752028309603,1.0061563,662.3,661.49,0.93019737]
[1752028309801,1.0061563,662.29,661.5,0.93019737]
[1752028310004,1.0061563,662.28,661.51,0.93019737]
[1752028310205,1.0061563,662.27,661.52,0.93019737]
[1752028310504,1.0061563,662.26,661.53,0.93019737]
[1752028310706,1.0061563,662.25,661.54,0.93019737]
[1752028310905,1.0061563,662.24,661.55,0.93019737]
[1752028311101,0.26297991,662.32,661.56,0.93049572]
[1752028311306,1.00709424,662.31,661.57,0.93049572]
[1752028311507,1.00709424,662.3,661.58,0.93049572]
[1752028311706,1.00709424,662.29,661.59,0.93049572]
[1752028311906,1.00709424,662.28,661.6,0.93049572]
[1752028312101,1.00709424,662.28,661.16,1.6824131]
[1752028312102,1.00709424,662.27,661.61,0.93049572]
[1752028312302,1.00709424,662.26,661.62,0.93078774]
[1752028312602,1.00709424,662.25,661.63,0.93078774]
[1752028312806,1.00709424,662.24,661.64,0.93078774]
[1752028313005,1.00709424,662.23,661.65,0.93078774]
[1752028313206,0.26297991,662.32,661.17,1.68329401]
[1752028314304,0.26297991,662.32,661.18,1.68329401]
[1752028315407,0.26297991,662.32,661.19,1.68329401]
[1752028316510,0.26297991,662.32,661.19,2.61487993]
[1752028316711,1.00826816,662.31,661.2,0.9315857]
[1752028316911,1.00826816,662.3,661.19,1.68329401]
[1752028317111,1.00827235,662.29,661.2,0.93158957]
[1752028317312,1.00827235,662.28,661.21,0.93158957]
[1752028317511,1.00827235,662.27,661.22,0.93158957]
[1752028317706,1.00827235,662.26,661.23,0.93158957]
[1752028317911,1.00827235,662.25,661.24,0.93158957]
[1752028318110,1.00827235,662.24,661.25,0.93158957]
[1752028318313,1.00827235,662.23,661.26,0.93158957]
[1752028318513,1.00827235,662.22,661.27,0.93158957]
[1752028318810,1.00827235,662.21,661.28,0.93158957]
[1752028319009,0.26297991,662.32,661.29,0.93158957]
[1752028319010,1.00827235,662.2,661.29,0.93158957]
[1752028319208,1.00827235,662.19,661.3,0.93158957]
[1752028319412,1.00827235,662.18,661.31,0.93158957]
[1752028319609,1.00827235,662.17,661.32,0.93158957]
[1752028319813,1.00827235,662.31,661.33,0.93158957]
[1752028320013,1.00827235,662.3,661.34,0.93158957]
[1752028320315,3.38523069,662.08,661.35,0.93158957]
[1752028320516,1.464161,662.28,661.36,0.93158957]
[1752028320717,1.00827235,662.27,661.37,0.93158957]
[1752028321017,1.00827235,662.26,661.38,0.93158957]
[1752028321316,1.00827235,662.26,661.01,3.3899527]
[1752028321317,1.00827235,662.25,661.39,0.93158957]
[1752028321616,1.00827235,662.24,661.4,0.93158957]
[1752028321917,1.00827235,662.39,661.41,0.93158957]
[1752028322112,1.00827235,662.38,661.42,0.93158957]
[1752028322316,1.00827235,662.37,661.43,0.93158957]
[1752028322515,1.00827235,662.36,661.44,0.93158957]
[1752028322712,1.0093642,662.35,661.45,0.30215354]
[1752028322917,1.0093642,662.34,661.21,1.68508376]
[1752028323117,1.0093642,662.33,661.22,1.98723734]
[1752028323413,1.0093642,662.32,661.23,0.30215358]
[1752028323612,1.0093642,662.31,661.24,0.30215358]
[1752028323815,1.0093642,662.3,661.25,0.30215358]
[1752028324014,1.0093642,662.29,661.26,0.30215358]
[1752028324216,1.0093642,662.28,661.27,0.30215358]
[1752028324416,1.0093642,662.27,661.28,0.30215358]
[1752028324618,1.0093642,662.26,661.29,0.30215358]
[1752028324817,1.0093642,662.25,661.3,0.30215358]
[1752028325017,1.0093642,662.24,661.31,0.30215358]
[1752028325218,1.0093642,662.23,661.32,0.30215358]
[1752028325418,1.0093642,662.22,661.33,0.30215358]
[1752028325615,1.0093642,662.21,661.34,0.30215358]
[1752028325920,1.0093642,662.2,661.35,0.30215358]
[1752028326120,1.0093642,662.39,661.36,0.30215358]
[1752028326321,1.0093642,662.38,661.37,0.30215358]
[1752028326517,1.0093642,662.37,661.38,0.30215358]
[1752028326716,1.0093642,662.36,661.39,0.30215358]
[1752028326921,1.0093642,662.35,661.4,0.30215358]
[1752028327118,1.0093642,662.34,661.41,0.30215358]
[1752028327323,1.0093642,662.33,661.42,0.30215358]
[1752028327524,1.0093642,662.32,661.43,0.30215358]
[1752028327724,1.0093642,662.31,661.44,0.30215358]
[1752028328020,1.0093642,662.31,661.34,1.698]
[1752028328021,1.0093642,662.3,661.45,0.30215358]
[1752028328221,1.0093642,662.29,661.46,0.30215358]
[1752028328422,1.0093642,662.28,661.47,0.30215358]
[1752028328635,1.0093642,662.27,661.34,1.698]
[1752028328833,1.0093642,662.26,661.34,1.698]
[1752028329026,1.0093642,662.25,661.34,1.698]
[1752028329223,1.0093642,662.24,661.34,1.698]
[1752028329424,0.26289746,662.4,661.34,1.698]
[1752028329425,1.0093642,662.23,661.34,1.698]
[1752028329727,1.0093642,662.22,661.34,1.698]
[1752028330029,2.39501852,662.21,661.34,1.698]
[1752028330229,2.26356668,661.99,661.34,1.698]
[1752028330429,2.26356668,661.98,661.34,1.698]
[1752028331930,2.26356668,661.96,661.34,1.698]
[1752028336338,2.26356668,661.97,661.34,1.698]
[1752028337128,2.26356668,661.96,661.34,1.698]
[1752028339034,2.26356668,661.93,661.34,1.698]
[1752028339230,2.26356668,661.91,661.34,1.698]
[1752028340930,2.26356668,661.94,661.36,1.69036504]
[1752028341530,2.26356668,661.96,661.36,1.69036504]
[1752028341735,2.26356668,661.96,661.35,1.69036504]
[1752028342032,2.26356668,661.97,661.34,3.38836504]
[1752028344032,2.26356668,661.97,661.34,1.69036504]
[1752028345233,2.26356668,661.98,661.34,1.69036504]
[1752028345441,2.26356668,661.98,661.33,1.69036504]
[1752028346139,2.26356668,661.96,661.35,1.69036504]
[1752028346434,2.26356668,661.97,661.34,1.69036504]
[1752028347738,2.26356668,661.97,661.35,1.53]
[1752028351443,2.26356668,661.94,661.36,1.69036504]
[1752028351943,2.26356668,661.92,661.38,1.69036504]
[1752028353340,2.26356668,661.93,661.37,1.69036504]
[1752028354146,2.26356668,661.93,661.35,1.53]
[1752028354147,2.26356668,661.92,661.38,1.69036504]
[1752028355451,2.26356668,661.91,661.39,1.69036504]
[1752028357043,2.26356668,661.91,661.35,1.53]
[1752028357044,2.26356668,661.95,661.36,1.69036504]
[1752028359850,1.69752581,661.82,661.36,1.69036504]
[1752028360651,1.69752581,661.83,661.35,3.22036504]
[1752028362053,1.69752581,661.82,661.35,3.22036504]
[1752028363751,1.69752581,661.82,661.36,1.69036504]
[1752028366056,1.69752581,661.82,661.35,3.22036504]
[1752028366858,1.69752581,661.81,661.37,1.69036504]
[1752028370362,0.26289746,662.4,661.39,1.69036504]
[1752028370363,1.69752581,661.8,661.39,1.69036504]
[1752028370560,1.69752581,661.8,661.38,1.69036504]
[1752028370956,1.69752581,661.8,661.39,1.69036504]
[1752028372157,1.69752581,661.81,661.37,1.69036504]
[1752028373963,1.69752581,661.82,661.36,1.69036504]
[1752028374159,1.69752581,661.81,661.36,1.69036504]
[1752028375263,1.69752581,661.81,661.37,1.69036504]
[1752028377261,1.69752581,661.81,661.38,1.69036504]
[1752028380363,1.69752581,661.8,661.38,1.69036504]
[1752028381167,1.69752581,661.81,661.38,1.69036504]
[1752028381467,1.69752581,661.8,661.38,1.69036504]
[1752028381966,1.69752581,661.81,661.37,1.69036504]
[1752028383271,1.01152641,661.94,661.35,1.53]
[1752028383479,1.69834175,661.81,661.37,1.69016035]
[1752028384172,1.69834175,661.8,661.37,1.69016035]
[1752028384671,1.69834175,661.81,661.37,1.69016035]
[1752028386174,1.69834175,661.8,661.37,1.69016035]
[1752028388072,1.69834175,661.8,661.38,1.69016035]
[1752028390074,1.69834175,661.8,661.39,2.172]
[1752028391975,1.69834175,661.78,661.42,1.69016035]
[1752028392368,1.69834175,661.78,661.39,2.172]
[1752028392369,1.69834175,661.78,661.41,1.69016035]
[1752028394173,1.69834175,661.78,661.42,1.69016035]
[1752028395474,1.69834175,661.78,661.41,1.69016035]
[1752028396078,1.69834175,661.78,661.42,1.69016035]
[1752028398476,1.69834175,661.78,661.41,1.69016035]
[1752028400176,1.69834175,661.77,661.42,1.69016035]
[1752028400878,1.69834175,661.77,661.39,2.172]
[1752028400879,1.69834175,661.8,661.39,3.86216035]
[1752028401076,1.69834175,661.79,661.39,3.86216035]
[1752028401580,1.69834175,661.79,661.4,1.69016035]
[1752028403977,2.26356668,661.92,661.39,2.172]
[1752028403978,1.69834175,661.8,661.39,2.172]
[1752028405979,1.69834175,661.77,661.39,2.172]
[1752028407501,1.69834175,661.78,661.39,2.172]
[1752028409787,1.69834175,661.77,661.39,2.172]
[1752028412387,1.69834175,661.78,661.39,2.172]
[1752028413090,1.69834175,661.77,661.39,2.172]
[1752028416888,1.69834175,661.74,661.39,2.172]
[1752028417994,1.69834175,661.75,661.39,2.172]
[1752028420690,1.69834175,661.76,661.39,2.172]
[1752028420894,1.69834175,661.79,661.39,2.172]
[1752028421194,1.69834175,661.8,661.39,2.172]
[1752028422093,1.69834175,661.79,661.39,2.172]
[1752028422596,1.69834175,661.68,661.39,2.172]
[1752028422991,1.69834175,661.64,661.39,2.172]
[1752028423491,1.69834175,661.66,661.39,2.172]
[1752028423692,1.69834175,661.76,661.39,2.172]
[1752028424396,1.69834175,661.77,661.39,2.172]
[1752028425298,1.69834175,661.78,661.39,2.172]
[1752028426397,1.69834175,661.79,661.39,2.172]
[1752028426595,1.69834175,661.81,661.39,2.172]
[1752028428394,1.69834175,661.82,661.39,2.172]
[1752028428703,1.69834175,661.83,661.39,2.172]
[1752028430094,1.69834175,661.83,660.97,1.69016035]
[1752028430395,1.69834175,661.83,660.96,1.69016035]
[1752028430896,1.69834175,661.83,660.97,1.69016035]
[1752028431495,1.69834175,661.84,660.96,1.69016035]
[1752028432896,1.69834175,661.84,660.97,2.333]
[1752028433598,1.69834175,661.85,660.97,2.333]
[1752028433797,2.26356668,661.99,660.97,2.333]
[1752028433997,1.69503686,661.79,661.03,1.68744232]
[1752028435299,1.69503686,661.84,660.97,2.333]
[1752028435602,1.69503686,661.85,660.97,2.333]
[1752028435797,1.69503686,661.84,660.97,2.333]
[1752028436200,1.69503686,661.85,660.97,2.333]
[1752028438411,1.69503686,661.87,660.97,4.02044232]
[1752028441018,1.69503686,661.84,661.01,1.68744232]
[1752028441916,1.69503686,661.84,661.02,1.68744232]
[1752028442514,1.69503686,661.88,660.97,2.333]
[1752028442713,1.69503686,661.88,660.97,4.02044232]
[1752028443414,1.69503686,661.89,660.97,4.02044232]
[1752028445213,1.69503686,661.87,661.0,1.68744232]
[1752028448328,1.69503686,661.84,660.98,1.68744232]
[1752028450120,1.69503686,661.84,660.99,1.68744232]
[1752028452426,1.69503686,661.78,661.07,1.68744232]
[1752028452826,1.69503686,661.78,661.08,1.68744232]
[1752028454027,1.69503686,661.76,661.11,1.68744232]
[1752028454533,1.69503686,661.75,661.13,1.68744232]
[1752028455227,1.69503686,661.75,660.31,5.6499213]
[1752028455228,1.69503686,661.75,661.12,1.68744232]
[1752028455825,1.69503686,661.75,661.13,1.892]
[1752028457526,1.69503686,661.75,661.13,3.57944232]
[1752028458729,1.69503686,661.74,661.13,3.57944232]
[1752028462428,1.69503686,661.74,661.14,1.68744232]
[1752028463432,1.69503686,661.73,661.14,1.68744232]
[1752028465536,1.69503686,661.73,661.13,1.892]
[1752028465537,1.69503686,661.73,661.15,1.68744232]
[1752028466739,1.69503686,661.8,661.13,1.892]
[1752028468434,1.69503686,661.79,661.13,1.892]
[1752028471843,1.69503686,661.83,661.13,1.892]
[1752028472338,1.69503686,661.82,661.13,1.892]
[1752028476338,1.69503686,661.81,661.13,1.892]
[1752028476743,1.69503686,661.79,661.13,1.892]
[1752028477037,1.69503686,661.8,661.13,1.892]
[1752028477446,1.69503686,661.79,661.13,1.892]
[1752028478441,1.69503686,661.8,661.13,1.892]
[1752028480141,1.69503686,661.79,661.13,1.892]
[1752028480642,1.69503686,661.8,661.13,1.892]
[1752028481547,1.69503686,661.79,661.13,1.892]
[1752028481847,1.69503686,661.75,661.15,1.68744232]
[1752028482347,1.69503686,661.74,661.16,1.68744232]
[1752028482549,1.69503686,661.72,661.19,1.68744232]
[1752028482948,1.69503686,661.79,661.13,1.892]
[1752028483147,1.69503686,661.78,661.13,1.892]
[1752028483548,1.69503686,661.8,661.13,1.892]
[1752028483950,1.69503686,661.85,661.17,1.68744232]
[1752028484247,1.69503686,661.86,661.16,1.68744232]
[1752028484458,1.69503686,661.85,661.19,1.68744232]
[1752028484751,1.69503686,661.89,661.24,1.68744232]
[1752028485266,1.69503686,661.9,661.22,1.68744232]
[1752028485554,1.69503686,661.9,661.23,1.68744232]
[1752028485752,1.69503686,661.9,661.22,1.68744232]
[1752028486149,1.69503686,661.9,661.21,1.68744232]
[1752028487256,1.69503686,661.91,661.2,1.68744232]
[1752028488154,1.69503686,661.91,661.19,1.68744232]
[1752028488352,1.69503686,661.9,661.18,1.68744232]
[1752028488553,1.69503686,661.84,661.26,1.68744232]
[1752028489159,1.69503686,661.85,661.26,1.68744232]
[1752028489353,1.69503686,661.84,661.26,1.68744232]
[1752028490056,1.69503686,661.81,661.24,1.68744232]
[1752028490256,1.69503686,661.81,661.23,1.68744232]
[1752028490557,5.6685836,662.75,661.14,1.68744232]
[1752028490558,1.69503686,661.87,661.14,1.68744232]
[1752028490955,1.69503686,661.88,661.14,1.68744232]
[1752028491353,1.69503686,661.85,661.12,1.68744232]
[1752028492063,1.69503686,661.86,661.11,1.68744232]
[1752028492955,1.69503686,661.85,661.12,1.728]
[1752028494158,1.69503686,661.84,661.12,1.728]
[1752028495160,1.69503686,661.82,661.12,1.728]
[1752028496760,1.69503686,661.79,661.12,1.728]
[1752028497466,1.69503686,661.78,661.12,1.728]
[1752028498158,1.69503686,661.81,661.12,1.728]
[1752028499660,1.69503686,661.77,661.12,1.728]
[1752028499861,1.69503686,661.81,661.12,1.728]
[1752028501759,1.69503686,661.8,661.12,1.728]
[1752028503666,1.69503686,661.79,661.12,1.728]
[1752028505363,1.69503686,661.8,661.12,1.728]
[1752028506368,1.69503686,661.76,661.12,1.728]
[1752028507164,1.69503686,661.77,661.12,1.728]
[1752028507667,1.69503686,661.74,661.12,1.728]
[1752028509871,1.69503686,661.71,661.12,1.728]
[1752028510365,1.01041068,661.88,661.12,1.728]
[1752028510366,1.69503686,661.73,661.12,1.728]
[1752028510567,1.69503686,661.69,661.12,1.728]
[1752028510767,1.69503686,661.73,661.12,1.728]
[1752028513273,1.69503686,661.74,661.12,1.728]
[1752028513671,1.69503686,661.73,661.12,1.728]
[1752028514377,1.69503686,661.74,661.12,1.728]
[1752028515375,1.69503686,661.73,661.12,1.728]
[1752028516175,1.01041068,661.96,661.12,1.728]
[1752028516176,1.69503686,661.74,661.12,1.728]
[1752028516877,1.69503686,661.77,661.12,1.728]
[1752028517375,1.69570147,661.81,661.12,1.728]
[1752028520181,1.69570147,661.8,661.12,1.728]
[1752028520681,1.69570147,661.78,661.12,1.728]
[1752028522078,1.69570147,661.81,661.12,1.728]
[1752028522878,1.69570147,661.82,661.12,1.728]
[1752028523081,1.69570147,661.83,661.12,1.728]
[1752028523277,1.69570147,661.82,661.12,1.728]
[1752028524181,1.69570147,661.83,661.12,1.728]
[1752028524382,1.69570147,661.82,661.12,1.728]
[1752028524582,1.69570147,661.81,661.12,1.728]
[1752028526677,1.69570147,661.78,661.12,1.728]
[1752028527079,1.69570147,661.79,661.12,1.728]
[1752028527282,1.69570147,661.78,661.12,1.728]
[1752028528084,1.69570147,661.79,661.12,1.728]
[1752028528280,1.69570147,661.78,661.12,1.728]
[1752028529183,1.69570147,661.79,661.12,1.728]
[1752028529388,1.69570147,661.78,661.12,1.728]
[1752028530186,1.69570147,661.79,661.12,1.728]
[1752028530386,1.69570147,661.78,661.12,1.728]
[1752028531087,1.69570147,661.79,661.12,1.728]
[1752028531285,2.31711462,661.98,661.12,1.728]
[1752028531286,1.69570147,661.78,661.12,1.728]
[1752028532786,1.69570147,661.72,661.12,1.728]
[1752028533489,1.69570147,661.71,661.12,3.41725873]
[1752028538789,1.69570147,661.7,661.14,1.68925873]
[1752028541390,1.69570147,661.69,661.14,1.68925873]
[1752028541595,1.69570147,661.69,661.15,1.68925873]
[1752028542095,1.69570147,661.71,661.16,2.509]
[1752028542593,1.69570147,661.72,661.16,2.509]
[1752028544195,1.69570147,661.71,661.16,2.509]
[1752028544896,1.69570147,661.72,661.16,2.509]
[1752028545695,1.69570147,661.71,661.16,2.509]
[1752028547191,1.69570147,661.7,661.16,2.509]
[1752028548298,1.69570147,661.7,661.16,4.19825873]
[1752028549297,1.69570147,661.69,661.16,4.19825873]
[1752028550800,1.69570147,661.66,661.2,1.68925873]
[1752028551300,1.69570147,661.66,661.21,1.68925873]
[1752028551698,1.69570147,661.65,661.22,1.68925873]
[1752028553197,1.69570147,661.64,661.22,1.68925873]
[1752028553597,1.69570147,661.65,661.22,1.68925873]
[1752028554102,1.69570147,661.64,661.22,1.68925873]
[1752028554302,1.69570147,661.64,661.23,1.68925873]
[1752028555604,1.69570147,661.78,661.16,2.509]
[1752028556100,1.69570147,661.78,661.06,0.26299581]
[1752028559006,1.69570147,661.78,661.07,2.417]
[1752028561404,1.69570147,661.69,661.13,1.68925873]
[1752028561605,1.69570147,661.69,661.11,1.68925873]
[1752028562002,1.69570147,661.68,661.13,1.68925873]
[1752028562506,1.69570147,661.67,661.14,1.68925873]
[1752028563005,1.69570147,661.66,661.14,1.68925873]
[1752028563506,1.69570147,661.64,661.11,1.68925873]
[1752028564505,1.01120237,661.71,661.07,2.417]
[1752028564800,1.69570147,661.64,661.07,2.417]
[1752028565104,1.69570147,661.65,661.07,2.417]
[1752028565300,1.69570147,661.64,661.07,2.417]
[1752028565601,1.69570147,661.59,661.07,2.417]
[1752028566100,1.69570147,661.6,661.07,2.417]
[1752028566305,1.69570147,661.61,661.07,2.417]
[1752028567802,5.6685836,663.06,661.07,2.417]
[1752028567803,1.69570147,661.6,661.07,2.417]
[1752028568301,2.31792586,661.83,661.07,2.417]
[1752028568302,1.69570147,661.61,661.07,2.417]
[1752028569005,1.69570147,661.62,661.07,2.417]
[1752028570108,1.69570147,661.63,661.07,2.417]
[1752028571302,1.69570147,661.64,661.07,2.417]
[1752028574205,1.69570147,661.65,661.07,2.417]
[1752028574513,1.69570147,661.56,661.07,2.417]
[1752028574710,1.69570147,661.55,661.07,2.417]
[1752028575109,1.69570147,661.56,661.07,2.417]
[1752028576312,1.69570147,661.57,661.07,2.417]
[1752028577210,1.69570147,661.58,661.07,2.417]
[1752028578010,1.69570147,661.61,661.07,2.417]
[1752028578208,1.69570147,661.58,661.07,2.417]
[1752028578712,1.69570147,661.64,661.07,2.417]
[1752028580011,1.69570147,661.64,661.06,0.26299581]
[1752028583714,1.69570147,661.64,661.07,2.255]
[1752028586616,1.69570147,661.79,661.07,2.255]
[1752028592316,1.69570147,661.82,661.07,2.255]
[1752028592520,1.69570147,661.86,661.07,2.255]
[1752028595723,1.69570147,661.82,661.07,2.255]
[1752028596523,1.69570147,661.81,661.07,2.255]
[1752028597420,1.69570147,661.85,661.07,2.255]
[1752028598120,1.69570147,661.87,661.07,2.255]
[1752028602131,1.69570147,661.86,661.07,2.255]
[1752028603335,1.69570147,661.85,661.07,2.255]
[1752028604930,1.69570147,661.88,661.07,2.255]
[1752028605536,1.69570147,661.92,661.07,2.255]
[1752028606635,1.69570147,661.91,661.07,2.255]
[1752028607337,0.43702294,662.13,661.07,2.255]
[1752028607338,1.69570147,661.89,661.07,2.255]
[1752028607831,1.69570147,661.87,661.07,2.255]
[1752028608333,1.69570147,661.88,661.07,2.255]
[1752028608736,1.69570147,661.9,661.07,2.255]
[1752028609637,1.69570147,661.91,661.07,2.255]
[1752028610436,1.69570147,661.92,661.07,2.255]
[1752028611338,1.69570147,661.95,661.07,2.255]
[1752028611836,1.69570147,661.96,661.07,2.255]
[1752028613032,1.69570147,661.97,661.07,2.255]
[1752028613333,1.69570147,662.02,661.07,2.255]
[1752028614638,1.69570147,662.01,661.07,2.255]
[1752028617144,1.69570147,662.02,661.07,2.255]
[1752028617742,1.69570147,662.02,661.05,1.68925873]
[1752028618644,1.69570147,662.01,661.06,1.68925873]
[1752028619848,1.69570147,662.01,661.15,0.26296501]
[1752028620750,1.69570147,662.01,661.16,2.091]
[1752028621149,1.69570147,661.96,661.16,2.091]
[1752028621651,1.69570147,661.97,661.16,2.091]
[1752028622044,1.69570147,661.91,661.16,2.091]
[1752028622449,1.00815127,662.07,661.16,2.091]
[1752028622450,1.69570147,661.9,661.16,2.091]
[1752028622744,0.26296501,662.28,661.16,2.091]